[Event "Titled Tuesday Blitz August 24 2021"]
[White "Kowalczyk, Pawel"]
[Black "Jobava, Baadur"]
[WhiteFideId "1130641"]
[BlackFideId "13601520"]
[WhiteElo "2325"]
[BlackElo "2748"]
[Result "0-1"]
[Round "04"]
[TimeControl "180+1"]
[Date "2021.08.24"]
[WhiteClock "0:01:00"]
[BlackClock "0:00:26"]

1. a3 {[%clk 0:03:00]}  c6 {[%clk 0:03:00]} 2. b4 {[%clk 0:02:59]}  d5 {[%clk 0:03:01]} 3. Bb2 {[%clk 0:02:59]}  Nf6 {[%clk 0:03:01]} 4. Nf3 {[%clk 0:03:00]}  Bg4 {[%clk 0:03:02]} 5. Ne5 {[%clk 0:02:59]}  Bh5 {[%clk 0:03:02]} 6. g3 {[%clk 0:02:59]}  Nbd7 {[%clk 0:03:02]} 7. Bg2 {[%clk 0:02:59]}  e6 {[%clk 0:03:02]} 8. O-O {[%clk 0:02:58]}  Bd6 {[%clk 0:03:02]} 9. f4 {[%clk 0:02:59]}  O-O {[%clk 0:03:01]} 10. d3 {[%clk 0:02:58]}  Qc7 {[%clk 0:02:59]} 11. Nxd7 {[%clk 0:02:58]}  Nxd7 {[%clk 0:02:54]} 12. h3 {[%clk 0:02:59]}  f6 {[%clk 0:02:53]} 13. Nd2 {[%clk 0:02:57]}  e5 {[%clk 0:02:52]} 14. g4 {[%clk 0:02:58]}  Bf7 {[%clk 0:02:51]} 15. f5 {[%clk 0:02:58]}  a5 {[%clk 0:02:49]} 16. bxa5 {[%clk 0:02:58]}  Rxa5 {[%clk 0:02:48]} 17. Nb3 {[%clk 0:02:57]}  Ra4 {[%clk 0:02:48]} 18. e4 {[%clk 0:02:55]}  Rfa8 {[%clk 0:02:48]} 19. Qc1 {[%clk 0:02:53]}  Nc5 {[%clk 0:02:44]} 20. Nxc5 {[%clk 0:02:51]}  Bxc5+ {[%clk 0:02:45]} 21. Kh1 {[%clk 0:02:51]}  h6 {[%clk 0:02:40]} 22. h4 {[%clk 0:02:48]}  Qe7 {[%clk 0:02:40]} 23. g5 {[%clk 0:02:20]}  hxg5 {[%clk 0:02:41]} 24. hxg5 {[%clk 0:02:20]}  fxg5 {[%clk 0:02:42]} 25. Qd2 {[%clk 0:02:15]}  Bxa3 {[%clk 0:02:33]} 26. Bxa3 {[%clk 0:02:12]}  Rxa3 {[%clk 0:02:34]} 27. Rxa3 {[%clk 0:02:12]}  Rxa3 {[%clk 0:02:34]} 28. Bf3 {[%clk 0:02:09]}  Qf6 {[%clk 0:02:29]} 29. Rg1 {[%clk 0:02:09]}  Qh6+ {[%clk 0:02:25]} 30. Kg2 {[%clk 0:02:09]}  dxe4 {[%clk 0:02:23]} 31. Bxe4 {[%clk 0:02:07]}  Qh4 {[%clk 0:02:14]} 32. Kf3 {[%clk 0:01:58]}  Bh5+ {[%clk 0:02:13]} 33. Kg2 {[%clk 0:01:53]}  Ra2 {[%clk 0:02:12]} 34. Rh1 {[%clk 0:01:41]}  Qg4+ {[%clk 0:02:12]} 35. Kf2 {[%clk 0:01:41]}  Bf7 {[%clk 0:02:05]} 36. Rg1 {[%clk 0:01:41]}  Qf4+ {[%clk 0:02:01]} 37. Qxf4 {[%clk 0:01:39]}  Rxc2+ {[%clk 0:02:00]} 38. Qd2 {[%clk 0:01:37]}  Rxd2+ {[%clk 0:02:00]} 39. Ke3 {[%clk 0:01:38]}  Rh2 {[%clk 0:01:55]} 40. Rxg5 {[%clk 0:01:39]}  Kf8 {[%clk 0:01:55]} 41. Rg1 {[%clk 0:01:39]}  Ba2 {[%clk 0:01:38]} 42. Rg6 {[%clk 0:01:34]}  Rh3+ {[%clk 0:01:38]} 43. Kd2 {[%clk 0:01:34]}  Bf7 {[%clk 0:01:37]} 44. Rg1 {[%clk 0:01:32]}  Bd5 {[%clk 0:01:28]} 45. Rb1 {[%clk 0:01:30]}  Bxe4 {[%clk 0:01:28]} 46. dxe4 {[%clk 0:01:30]}  b5 {[%clk 0:01:29]} 47. Rc1 {[%clk 0:01:30]}  Rh6 {[%clk 0:01:30]} 48. Rc5 {[%clk 0:01:29]}  Ke7 {[%clk 0:01:24]} 49. Rxe5+ {[%clk 0:01:29]}  Kd6 {[%clk 0:01:25]} 50. Re8 {[%clk 0:01:29]}  c5 {[%clk 0:01:25]} 51. Ke3 {[%clk 0:01:27]}  b4 {[%clk 0:01:23]} 52. e5+ {[%clk 0:01:17]}  Kd5 {[%clk 0:01:24]} 53. e6 {[%clk 0:01:17]}  Rh3+ {[%clk 0:01:02]} 54. Kf4 {[%clk 0:01:17]}  Rh4+ {[%clk 0:01:02]} 55. Kg5 {[%clk 0:01:14]}  Re4 {[%clk 0:01:03]} 56. Rd8+ {[%clk 0:01:12]}  Kc6 {[%clk 0:00:50]} 57. Kg6 {[%clk 0:01:11]}  b3 {[%clk 0:00:50]} 58. Rb8 {[%clk 0:01:09]}  c4 {[%clk 0:00:43]} 59. Kf7 {[%clk 0:01:09]}  Kc7 {[%clk 0:00:28]} 60. Rb4 {[%clk 0:01:07]}  Rf4 {[%clk 0:00:27]} 61. e7 {[%clk 0:01:03]}  Rxf5+ {[%clk 0:00:27]} 62. Ke6 {[%clk 0:01:03]}  Rf6+ {[%clk 0:00:27]} 63. Ke5 {[%clk 0:01:01]}  Kd7 {[%clk 0:00:28]} 64. Rxc4 {[%clk 0:01:00]}  Rb6 {[%clk 0:00:26]} 0-1


[Site "https://www.chess.com"]

[Event "Titled Tuesday Blitz August 24 2021"]
[White "Kucuksari, Kaan"]
[Black "Hjartarson, Johann"]
[WhiteFideId "6380166"]
[BlackFideId "2300044"]
[WhiteElo "2300"]
[BlackElo "2502"]
[Result "1-0"]
[Round "04"]
[TimeControl "180+1"]
[Date "2021.08.24"]
[WhiteClock "0:01:05"]
[BlackClock "0:00:21"]

1. d4 {[%clk 0:03:00]}  d6 {[%clk 0:02:59]} 2. c4 {[%clk 0:02:59]}  e5 {[%clk 0:02:59]} 3. Nc3 {[%clk 0:02:52]}  exd4 {[%clk 0:02:57]} 4. Qxd4 {[%clk 0:02:53]}  Nc6 {[%clk 0:02:56]} 5. Qd2 {[%clk 0:02:50]}  Nf6 {[%clk 0:02:53]} 6. g3 {[%clk 0:02:48]}  Be6 {[%clk 0:02:52]} 7. b3 {[%clk 0:02:47]}  a5 {[%clk 0:02:51]} 8. Bg2 {[%clk 0:02:46]}  a4 {[%clk 0:02:51]} 9. Nxa4 {[%clk 0:02:45]}  d5 {[%clk 0:02:50]} 10. c5 {[%clk 0:02:45]}  b5 {[%clk 0:02:44]} 11. Nb2 {[%clk 0:02:27]}  Bxc5 {[%clk 0:02:41]} 12. Nd3 {[%clk 0:02:28]}  Bd6 {[%clk 0:02:37]} 13. Nf3 {[%clk 0:02:28]}  Ne4 {[%clk 0:02:31]} 14. Qb2 {[%clk 0:02:17]}  O-O {[%clk 0:02:30]} 15. O-O {[%clk 0:02:16]}  b4 {[%clk 0:02:27]} 16. Bd2 {[%clk 0:01:57]}  Ra6 {[%clk 0:02:12]} 17. Rfc1 {[%clk 0:01:51]}  Be7 {[%clk 0:02:09]} 18. Be3 {[%clk 0:01:47]}  Bf6 {[%clk 0:02:08]} 19. Nd4 {[%clk 0:01:47]}  Nxd4 {[%clk 0:01:40]} 20. Bxd4 {[%clk 0:01:47]}  Bxd4 {[%clk 0:01:28]} 21. Qxd4 {[%clk 0:01:48]}  Nc3 {[%clk 0:01:28]} 22. Rc2 {[%clk 0:01:38]}  Bf5 {[%clk 0:01:21]} 23. Nxb4 {[%clk 0:01:33]}  Bxc2 {[%clk 0:01:03]} 24. Qxc3 {[%clk 0:01:34]}  Re6 {[%clk 0:00:40]} 25. Qxc2 {[%clk 0:01:27]}  Rfe8 {[%clk 0:00:36]} 26. Bf3 {[%clk 0:01:25]}  d4 {[%clk 0:00:35]} 27. Nc6 {[%clk 0:01:23]}  Qd6 {[%clk 0:00:31]} 28. Rd1 {[%clk 0:01:22]}  g6 {[%clk 0:00:26]} 29. Nxd4 {[%clk 0:01:18]}  Re5 {[%clk 0:00:22]} 30. Nc6 {[%clk 0:01:13]}  Rc5 {[%clk 0:00:21]} 31. Rxd6 {[%clk 0:01:05]}  Rxc2 {[%clk 0:00:21]} 32. Rd7 {[%clk 0:01:06]}  Rxa2 {[%clk 0:00:21]} 33. Rxc7 {[%clk 0:01:05]} 1-0


[Site "https://www.chess.com"]

[Event "Titled Tuesday Blitz August 24 2021"]
[White "Kuzubov, Yuriy"]
[Black "Stribuk, Artiom"]
[WhiteFideId "14112906"]
[BlackFideId "13515659"]
[WhiteElo "2564"]
[BlackElo "2224"]
[Result "1-0"]
[Round "04"]
[TimeControl "180+1"]
[Date "2021.08.24"]
[WhiteClock "0:00:35"]
[BlackClock "0:00:01"]

1. d4 {[%clk 0:03:00]}  Nf6 {[%clk 0:02:58]} 2. Nf3 {[%clk 0:02:59]}  g6 {[%clk 0:02:57]} 3. Nbd2 {[%clk 0:02:59]}  Bg7 {[%clk 0:02:47]} 4. e4 {[%clk 0:02:58]}  d6 {[%clk 0:02:47]} 5. Bd3 {[%clk 0:02:59]}  O-O {[%clk 0:02:46]} 6. O-O {[%clk 0:02:59]}  c6 {[%clk 0:02:45]} 7. a4 {[%clk 0:02:55]}  Nbd7 {[%clk 0:02:25]} 8. Re1 {[%clk 0:02:53]}  e5 {[%clk 0:02:24]} 9. c3 {[%clk 0:02:52]}  Qe7 {[%clk 0:02:23]} 10. Qc2 {[%clk 0:02:38]}  Rd8 {[%clk 0:02:14]} 11. a5 {[%clk 0:02:37]}  h6 {[%clk 0:01:49]} 12. b4 {[%clk 0:02:29]}  Nh5 {[%clk 0:01:42]} 13. dxe5 {[%clk 0:02:26]}  Nxe5 {[%clk 0:01:38]} 14. Nxe5 {[%clk 0:02:26]}  Qxe5 {[%clk 0:01:26]} 15. Ra3 {[%clk 0:02:21]}  Nf4 {[%clk 0:01:01]} 16. Nf3 {[%clk 0:02:17]}  Nxd3 {[%clk 0:01:00]} 17. Nxe5 {[%clk 0:02:08]}  Nxe1 {[%clk 0:00:58]} 18. Qe2 {[%clk 0:02:03]}  dxe5 {[%clk 0:00:55]} 19. Qxe1 {[%clk 0:02:03]}  Be6 {[%clk 0:00:51]} 20. Be3 {[%clk 0:01:59]}  a6 {[%clk 0:00:49]} 21. Ra1 {[%clk 0:01:56]}  Rd3 {[%clk 0:00:46]} 22. Bb6 {[%clk 0:01:54]}  Bc4 {[%clk 0:00:44]} 23. Rd1 {[%clk 0:01:52]}  Re8 {[%clk 0:00:32]} 24. Rxd3 {[%clk 0:01:44]}  Bxd3 {[%clk 0:00:33]} 25. Qd2 {[%clk 0:01:39]}  Bxe4 {[%clk 0:00:29]} 26. Qd7 {[%clk 0:01:39]}  Re6 {[%clk 0:00:29]} 27. c4 {[%clk 0:01:29]}  Bf8 {[%clk 0:00:26]} 28. c5 {[%clk 0:01:23]}  h5 {[%clk 0:00:25]} 29. Bc7 {[%clk 0:01:19]}  Bg7 {[%clk 0:00:18]} 30. h3 {[%clk 0:01:16]}  Bd5 {[%clk 0:00:18]} 31. Bd6 {[%clk 0:01:09]}  e4 {[%clk 0:00:15]} 32. Qc8+ {[%clk 0:01:07]}  Kh7 {[%clk 0:00:13]} 33. Bf4 {[%clk 0:01:07]}  Bd4 {[%clk 0:00:12]} 34. Qxb7 {[%clk 0:01:05]}  Rf6 {[%clk 0:00:12]} 35. Be3 {[%clk 0:01:04]}  Bxe3 {[%clk 0:00:13]} 36. fxe3 {[%clk 0:01:05]}  Bc4 {[%clk 0:00:13]} 37. Qe7 {[%clk 0:01:04]}  Rf5 {[%clk 0:00:10]} 38. Qxe4 {[%clk 0:00:59]}  Bb5 {[%clk 0:00:11]} 39. Qe7 {[%clk 0:00:58]}  Kg8 {[%clk 0:00:10]} 40. Qe8+ {[%clk 0:00:55]}  Kg7 {[%clk 0:00:09]} 41. e4 {[%clk 0:00:54]}  Rf1+ {[%clk 0:00:09]} 42. Kh2 {[%clk 0:00:54]}  Re1 {[%clk 0:00:09]} 43. Qe5+ {[%clk 0:00:53]}  Kg8 {[%clk 0:00:09]} 44. Qf4 {[%clk 0:00:52]}  Re2 {[%clk 0:00:09]} 45. h4 {[%clk 0:00:50]}  Kg7 {[%clk 0:00:09]} 46. e5 {[%clk 0:00:48]}  Kg8 {[%clk 0:00:09]} 47. Kg3 {[%clk 0:00:48]}  Kg7 {[%clk 0:00:09]} 48. Kf3 {[%clk 0:00:46]}  Re1 {[%clk 0:00:08]} 49. Qf6+ {[%clk 0:00:46]}  Kg8 {[%clk 0:00:08]} 50. Qd6 {[%clk 0:00:46]}  Rf1+ {[%clk 0:00:07]} 51. Kg3 {[%clk 0:00:43]}  Re1 {[%clk 0:00:08]} 52. Kf2 {[%clk 0:00:43]}  Rf1+ {[%clk 0:00:07]} 53. Ke3 {[%clk 0:00:42]}  Re1+ {[%clk 0:00:08]} 54. Kd2 {[%clk 0:00:41]}  Re2+ {[%clk 0:00:08]} 55. Kc3 {[%clk 0:00:41]}  Rxg2 {[%clk 0:00:08]} 56. Qd8+ {[%clk 0:00:41]}  Kg7 {[%clk 0:00:08]} 57. Qf6+ {[%clk 0:00:41]}  Kg8 {[%clk 0:00:08]} 58. e6 {[%clk 0:00:41]}  fxe6 {[%clk 0:00:08]} 59. Qxe6+ {[%clk 0:00:41]}  Kh7 {[%clk 0:00:09]} 60. Qf7+ {[%clk 0:00:41]}  Kh8 {[%clk 0:00:08]} 61. Kd4 {[%clk 0:00:40]}  Rg4+ {[%clk 0:00:07]} 62. Ke5 {[%clk 0:00:40]}  Rg2 {[%clk 0:00:04]} 63. Qe8+ {[%clk 0:00:37]}  Kh7 {[%clk 0:00:05]} 64. Qd7+ {[%clk 0:00:37]}  Kh8 {[%clk 0:00:05]} 65. Kf6 {[%clk 0:00:36]}  Rf2+ {[%clk 0:00:02]} 66. Kxg6 {[%clk 0:00:36]}  Rg2+ {[%clk 0:00:02]} 67. Kh6 {[%clk 0:00:36]}  Kg8 {[%clk 0:00:01]} 68. Qe8# {[%clk 0:00:35]} 1-0


[Site "https://www.chess.com"]

[Event "Titled Tuesday Blitz August 24 2021"]
[White "Maiorov, Nikita"]
[Black "Wieczorek, Zbigniew"]
[WhiteFideId "13501720"]
[BlackFideId "1102001"]
[WhiteElo "2440"]
[BlackElo "2296"]
[Result "1-0"]
[Round "04"]
[TimeControl "180+1"]
[Date "2021.08.24"]
[WhiteClock "0:00:13"]
[BlackClock "0:00:05"]

1. d4 {[%clk 0:03:00]}  g6 {[%clk 0:03:00]} 2. e4 {[%clk 0:02:57]}  Bg7 {[%clk 0:03:00]} 3. c3 {[%clk 0:02:57]}  d6 {[%clk 0:03:00]} 4. Nf3 {[%clk 0:02:57]}  Nf6 {[%clk 0:03:00]} 5. Bd3 {[%clk 0:02:56]}  O-O {[%clk 0:02:59]} 6. O-O {[%clk 0:02:57]}  Nc6 {[%clk 0:02:59]} 7. Nbd2 {[%clk 0:02:54]}  e5 {[%clk 0:03:00]} 8. Re1 {[%clk 0:02:52]}  Re8 {[%clk 0:02:57]} 9. h3 {[%clk 0:02:01]}  Bd7 {[%clk 0:02:55]} 10. Nf1 {[%clk 0:01:58]}  exd4 {[%clk 0:02:25]} 11. cxd4 {[%clk 0:01:57]}  Nb4 {[%clk 0:02:25]} 12. Bb1 {[%clk 0:01:57]}  c5 {[%clk 0:02:25]} 13. d5 {[%clk 0:01:55]}  b5 {[%clk 0:02:09]} 14. a3 {[%clk 0:01:42]}  Na6 {[%clk 0:02:08]} 15. Bf4 {[%clk 0:01:17]}  Qb6 {[%clk 0:02:01]} 16. Ng3 {[%clk 0:01:12]}  c4 {[%clk 0:01:56]} 17. Be3 {[%clk 0:01:11]}  Nc5 {[%clk 0:01:56]} 18. Bc2 {[%clk 0:01:10]}  Rac8 {[%clk 0:01:52]} 19. Bd4 {[%clk 0:01:09]}  Qd8 {[%clk 0:01:47]} 20. Qd2 {[%clk 0:01:08]}  a5 {[%clk 0:01:32]} 21. Bc3 {[%clk 0:00:59]}  a4 {[%clk 0:01:29]} 22. Nd4 {[%clk 0:00:54]}  Nb3 {[%clk 0:01:28]} 23. Bxb3 {[%clk 0:00:54]}  cxb3 {[%clk 0:01:28]} 24. f4 {[%clk 0:00:53]}  Rc4 {[%clk 0:01:23]} 25. Kh1 {[%clk 0:00:52]}  Qb6 {[%clk 0:01:19]} 26. f5 {[%clk 0:00:48]}  Rec8 {[%clk 0:00:32]} 27. Rf1 {[%clk 0:00:40]}  Be8 {[%clk 0:00:21]} 28. Rae1 {[%clk 0:00:37]}  Nd7 {[%clk 0:00:15]} 29. Nc6 {[%clk 0:00:31]}  Bxc3 {[%clk 0:00:14]} 30. bxc3 {[%clk 0:00:28]}  R8xc6 {[%clk 0:00:13]} 31. dxc6 {[%clk 0:00:27]}  Qxc6 {[%clk 0:00:13]} 32. f6 {[%clk 0:00:26]}  Nf8 {[%clk 0:00:09]} 33. Nf5 {[%clk 0:00:20]}  Rxc3 {[%clk 0:00:07]} 34. Qh6 {[%clk 0:00:14]}  Ne6 {[%clk 0:00:06]} 35. Ne7+ {[%clk 0:00:12]}  Kh8 {[%clk 0:00:06]} 36. Nxg6+ {[%clk 0:00:12]}  fxg6 {[%clk 0:00:06]} 37. f7 {[%clk 0:00:12]}  Bxf7 {[%clk 0:00:05]} 38. Rxf7 {[%clk 0:00:13]} 1-0


[Site "https://www.chess.com"]

[Event "Titled Tuesday Blitz August 24 2021"]
[White "Maksimovic, Bojan"]
[Black "Timofeev, Artyom"]
[WhiteFideId "14408120"]
[BlackFideId "4140419"]
[WhiteElo "2439"]
[BlackElo "2582"]
[Result "0-1"]
[Round "04"]
[TimeControl "180+1"]
[Date "2021.08.24"]
[WhiteClock "0:00:04"]
[BlackClock "0:00:44"]

1. e4 {[%clk 0:03:00]}  e6 {[%clk 0:02:59]} 2. d4 {[%clk 0:03:00]}  d5 {[%clk 0:02:59]} 3. Nc3 {[%clk 0:03:01]}  dxe4 {[%clk 0:03:00]} 4. Nxe4 {[%clk 0:03:02]}  Nd7 {[%clk 0:03:00]} 5. Nf3 {[%clk 0:03:02]}  Ngf6 {[%clk 0:03:00]} 6. Bg5 {[%clk 0:03:02]}  Be7 {[%clk 0:03:00]} 7. Bd3 {[%clk 0:02:56]}  c5 {[%clk 0:02:57]} 8. Nxc5 {[%clk 0:02:33]}  Nxc5 {[%clk 0:02:54]} 9. dxc5 {[%clk 0:02:33]}  Qa5+ {[%clk 0:02:52]} 10. Qd2 {[%clk 0:02:31]}  Qxd2+ {[%clk 0:02:49]} 11. Kxd2 {[%clk 0:02:16]}  Bxc5 {[%clk 0:02:48]} 12. Be3 {[%clk 0:02:17]}  Bxe3+ {[%clk 0:02:47]} 13. Kxe3 {[%clk 0:02:18]}  Ke7 {[%clk 0:02:47]} 14. Rhd1 {[%clk 0:02:10]}  b6 {[%clk 0:02:44]} 15. c4 {[%clk 0:02:03]}  Bb7 {[%clk 0:02:44]} 16. h3 {[%clk 0:02:04]}  a5 {[%clk 0:02:39]} 17. g3 {[%clk 0:01:59]}  Bxf3 {[%clk 0:02:25]} 18. Kxf3 {[%clk 0:02:00]}  Nd7 {[%clk 0:02:26]} 19. Be2 {[%clk 0:01:57]}  Nc5 {[%clk 0:02:24]} 20. b3 {[%clk 0:01:54]}  f5 {[%clk 0:02:22]} 21. Ke3 {[%clk 0:01:53]}  g5 {[%clk 0:02:19]} 22. Rd4 {[%clk 0:01:51]}  Rad8 {[%clk 0:02:18]} 23. Rad1 {[%clk 0:01:45]}  Rxd4 {[%clk 0:02:16]} 24. Rxd4 {[%clk 0:01:46]}  h6 {[%clk 0:02:09]} 25. Bd1 {[%clk 0:01:42]}  Rc8 {[%clk 0:01:43]} 26. Bc2 {[%clk 0:01:35]}  Nd7 {[%clk 0:01:36]} 27. g4 {[%clk 0:01:04]}  f4+ {[%clk 0:01:36]} 28. Ke2 {[%clk 0:01:00]}  Ne5 {[%clk 0:01:28]} 29. Be4 {[%clk 0:00:56]}  Rd8 {[%clk 0:01:27]} 30. Rxd8 {[%clk 0:00:51]}  Kxd8 {[%clk 0:01:28]} 31. Kd2 {[%clk 0:00:48]}  Kc7 {[%clk 0:01:28]} 32. Kc3 {[%clk 0:00:48]}  Kd6 {[%clk 0:01:28]} 33. a3 {[%clk 0:00:44]}  Nd7 {[%clk 0:01:26]} 34. b4 {[%clk 0:00:39]}  axb4+ {[%clk 0:01:26]} 35. axb4 {[%clk 0:00:40]}  Nf6 {[%clk 0:01:26]} 36. Kd3 {[%clk 0:00:38]}  Nd7 {[%clk 0:01:16]} 37. Kd4 {[%clk 0:00:37]}  e5+ {[%clk 0:01:13]} 38. Kd3 {[%clk 0:00:37]}  Nb8 {[%clk 0:01:13]} 39. Bb7 {[%clk 0:00:33]}  Nd7 {[%clk 0:01:13]} 40. Bf3 {[%clk 0:00:31]}  Nf6 {[%clk 0:01:12]} 41. Bg2 {[%clk 0:00:30]}  Kc7 {[%clk 0:01:10]} 42. c5 {[%clk 0:00:24]}  bxc5 {[%clk 0:01:10]} 43. bxc5 {[%clk 0:00:25]}  Kd7 {[%clk 0:01:07]} 44. Be4 {[%clk 0:00:22]}  Kc7 {[%clk 0:01:06]} 45. Bf3 {[%clk 0:00:21]}  Kd7 {[%clk 0:01:05]} 46. Be4 {[%clk 0:00:21]}  Kc8 {[%clk 0:01:05]} 47. Bf3 {[%clk 0:00:21]}  Kc7 {[%clk 0:01:05]} 48. Be4 {[%clk 0:00:21]}  h5 {[%clk 0:01:05]} 49. Bf3 {[%clk 0:00:10]}  hxg4 {[%clk 0:01:04]} 50. hxg4 {[%clk 0:00:10]}  Kd8 {[%clk 0:01:00]} 51. Kc4 {[%clk 0:00:11]}  Kd7 {[%clk 0:01:00]} 52. Bd1 {[%clk 0:00:09]}  Kc7 {[%clk 0:00:58]} 53. f3 {[%clk 0:00:06]}  e4 {[%clk 0:00:58]} 54. fxe4 {[%clk 0:00:07]}  Nxe4 {[%clk 0:00:58]} 55. Kd4 {[%clk 0:00:08]}  Nf2 {[%clk 0:00:51]} 56. Bf3 {[%clk 0:00:08]}  Nh3 {[%clk 0:00:51]} 57. Ke5 {[%clk 0:00:07]}  Ng1 {[%clk 0:00:51]} 58. Bg2 {[%clk 0:00:03]}  f3 {[%clk 0:00:51]} 59. Bf1 {[%clk 0:00:03]}  f2 {[%clk 0:00:51]} 60. Kf5 {[%clk 0:00:03]}  Nf3 {[%clk 0:00:52]} 61. Ke4 {[%clk 0:00:02]}  Nd2+ {[%clk 0:00:52]} 62. Ke3 {[%clk 0:00:01]}  Nxf1+ {[%clk 0:00:52]} 63. Kxf2 {[%clk 0:00:02]}  Nd2 {[%clk 0:00:52]} 64. Ke3 {[%clk 0:00:03]}  Nf1+ {[%clk 0:00:47]} 65. Ke4 {[%clk 0:00:03]}  Nh2 {[%clk 0:00:47]} 66. Kf5 {[%clk 0:00:03]}  Nf3 {[%clk 0:00:47]} 67. Ke4 {[%clk 0:00:03]}  Nh4 {[%clk 0:00:47]} 68. Ke5 {[%clk 0:00:03]}  Kc6 {[%clk 0:00:47]} 69. Kd4 {[%clk 0:00:04]}  Ng2 {[%clk 0:00:43]} 70. Ke4 {[%clk 0:00:04]}  Nf4 {[%clk 0:00:44]} 71. Kf5 {[%clk 0:00:04]}  Nh3 {[%clk 0:00:44]} 72. Ke4 {[%clk 0:00:04]}  Kxc5 {[%clk 0:00:44]} 73. Kf3 {[%clk 0:00:04]} 0-1


[Site "https://www.chess.com"]

[Event "Titled Tuesday Blitz August 24 2021"]
[White "Mikhailovsky, Vladimir"]
[Black "Wagner, Dinara"]
[WhiteFideId "34105414"]
[BlackFideId "24157570"]
[WhiteElo "2315"]
[BlackElo "2260"]
[Result "1/2-1/2"]
[Round "04"]
[TimeControl "180+1"]
[Date "2021.08.24"]
[WhiteClock "0:00:03"]
[BlackClock "0:00:05"]

1. b3 {[%clk 0:02:59]}  e5 {[%clk 0:02:59]} 2. Bb2 {[%clk 0:02:59]}  Nc6 {[%clk 0:03:00]} 3. e3 {[%clk 0:02:59]}  Nf6 {[%clk 0:03:00]} 4. Nf3 {[%clk 0:02:59]}  e4 {[%clk 0:02:39]} 5. Ne5 {[%clk 0:02:56]}  Nxe5 {[%clk 0:02:33]} 6. Bxe5 {[%clk 0:02:57]}  d6 {[%clk 0:02:33]} 7. Bb2 {[%clk 0:02:56]}  Bg4 {[%clk 0:02:31]} 8. Be2 {[%clk 0:02:56]}  Bxe2 {[%clk 0:02:31]} 9. Qxe2 {[%clk 0:02:57]}  Be7 {[%clk 0:02:31]} 10. Qb5+ {[%clk 0:02:54]}  Qd7 {[%clk 0:02:26]} 11. Qxb7 {[%clk 0:02:53]}  O-O {[%clk 0:02:26]} 12. Qa6 {[%clk 0:02:40]}  Qg4 {[%clk 0:02:23]} 13. O-O {[%clk 0:02:35]}  h5 {[%clk 0:02:15]} 14. Nc3 {[%clk 0:02:33]}  Rfe8 {[%clk 0:02:08]} 15. Qe2 {[%clk 0:02:31]}  Qg6 {[%clk 0:02:08]} 16. f3 {[%clk 0:02:23]}  d5 {[%clk 0:02:03]} 17. fxe4 {[%clk 0:02:22]}  dxe4 {[%clk 0:01:56]} 18. Nb5 {[%clk 0:02:10]}  Rac8 {[%clk 0:01:38]} 19. Nd4 {[%clk 0:02:09]}  Ng4 {[%clk 0:01:17]} 20. Nf5 {[%clk 0:02:04]}  Bf6 {[%clk 0:01:10]} 21. Bxf6 {[%clk 0:02:01]}  Nxf6 {[%clk 0:01:10]} 22. Qa6 {[%clk 0:01:47]}  Rcd8 {[%clk 0:01:04]} 23. Rad1 {[%clk 0:01:38]}  Rd5 {[%clk 0:01:00]} 24. Nh4 {[%clk 0:01:00]}  Qg4 {[%clk 0:00:49]} 25. g3 {[%clk 0:00:59]}  Rg5 {[%clk 0:00:44]} 26. Ng2 {[%clk 0:00:44]}  h4 {[%clk 0:00:42]} 27. Qc6 {[%clk 0:00:28]}  hxg3 {[%clk 0:00:36]} 28. h4 {[%clk 0:00:27]}  Qh3 {[%clk 0:00:28]} 29. Rxf6 {[%clk 0:00:17]}  Qh2+ {[%clk 0:00:28]} 30. Kf1 {[%clk 0:00:18]}  Qh1+ {[%clk 0:00:28]} 31. Ke2 {[%clk 0:00:18]}  Qxg2+ {[%clk 0:00:28]} 32. Ke1 {[%clk 0:00:19]}  Rd8 {[%clk 0:00:12]} 33. hxg5 {[%clk 0:00:17]}  gxf6 {[%clk 0:00:11]} 34. Qxf6 {[%clk 0:00:17]}  Rd6 {[%clk 0:00:10]} 35. Qf4 {[%clk 0:00:12]}  Qh2 {[%clk 0:00:06]} 36. d4 {[%clk 0:00:10]}  exd3 {[%clk 0:00:05]} 37. Rxd3 {[%clk 0:00:10]}  Qh1+ {[%clk 0:00:05]} 38. Ke2 {[%clk 0:00:10]}  g2 {[%clk 0:00:05]} 39. Rxd6 {[%clk 0:00:08]}  cxd6 {[%clk 0:00:04]} 40. g6 {[%clk 0:00:08]}  fxg6 {[%clk 0:00:02]} 41. Qc4+ {[%clk 0:00:08]}  Kg7 {[%clk 0:00:01]} 42. Qd4+ {[%clk 0:00:09]}  Kh6 {[%clk 0:00:02]} 43. Qf4+ {[%clk 0:00:07]}  Kh7 {[%clk 0:00:02]} 44. Qf7+ {[%clk 0:00:07]}  Kh6 {[%clk 0:00:03]} 45. Qf8+ {[%clk 0:00:06]}  Kg5 {[%clk 0:00:03]} 46. Qf4+ {[%clk 0:00:06]}  Kh5 {[%clk 0:00:03]} 47. Qf3+ {[%clk 0:00:03]}  Kh6 {[%clk 0:00:04]} 48. Qf8+ {[%clk 0:00:02]}  Kh7 {[%clk 0:00:04]} 49. Qf7+ {[%clk 0:00:02]}  Kh6 {[%clk 0:00:05]} 50. Qf8+ {[%clk 0:00:03]} 1/2-1/2


[Site "https://www.chess.com"]

[Event "Titled Tuesday Blitz August 24 2021"]
[White "Murzin, Volodar"]
[Black "Shtyka, Sergey"]
[WhiteFideId "44155573"]
[BlackFideId "4138465"]
[WhiteElo "2541"]
[BlackElo "2064"]
[Result "0-1"]
[Round "04"]
[TimeControl "180+1"]
[Date "2021.08.24"]
[WhiteClock "0:00:01"]
[BlackClock "0:00:14"]

1. e4 {[%clk 0:03:00]}  c5 {[%clk 0:02:58]} 2. Nf3 {[%clk 0:03:00]}  d6 {[%clk 0:02:56]} 3. d4 {[%clk 0:03:00]}  cxd4 {[%clk 0:02:57]} 4. Nxd4 {[%clk 0:03:01]}  Nf6 {[%clk 0:02:57]} 5. Nc3 {[%clk 0:02:58]}  g6 {[%clk 0:02:57]} 6. f3 {[%clk 0:02:40]}  Bg7 {[%clk 0:02:56]} 7. Be3 {[%clk 0:02:41]}  O-O {[%clk 0:02:56]} 8. Qd2 {[%clk 0:02:41]}  Nc6 {[%clk 0:02:56]} 9. O-O-O {[%clk 0:02:41]}  d5 {[%clk 0:02:56]} 10. Nxc6 {[%clk 0:01:33]}  bxc6 {[%clk 0:02:56]} 11. e5 {[%clk 0:01:29]}  Nd7 {[%clk 0:02:46]} 12. f4 {[%clk 0:01:29]}  Qa5 {[%clk 0:02:30]} 13. Kb1 {[%clk 0:01:24]}  Rb8 {[%clk 0:02:23]} 14. Ne2 {[%clk 0:00:53]}  Qa3 {[%clk 0:01:38]} 15. Qc3 {[%clk 0:00:30]}  Qxc3 {[%clk 0:01:31]} 16. Nxc3 {[%clk 0:00:29]}  a5 {[%clk 0:01:26]} 17. Na4 {[%clk 0:00:16]}  f6 {[%clk 0:01:24]} 18. e6 {[%clk 0:00:14]}  Rb4 {[%clk 0:00:57]} 19. exd7 {[%clk 0:00:14]}  Bxd7 {[%clk 0:00:58]} 20. Nc5 {[%clk 0:00:13]}  Bf5 {[%clk 0:00:58]} 21. Bd3 {[%clk 0:00:13]}  Bg4 {[%clk 0:00:56]} 22. Rde1 {[%clk 0:00:12]}  e5 {[%clk 0:00:55]} 23. Bd2 {[%clk 0:00:10]}  Rbb8 {[%clk 0:00:44]} 24. h3 {[%clk 0:00:09]}  Bc8 {[%clk 0:00:44]} 25. Bxa5 {[%clk 0:00:08]}  e4 {[%clk 0:00:45]} 26. Be2 {[%clk 0:00:07]}  f5 {[%clk 0:00:45]} 27. b3 {[%clk 0:00:08]}  Re8 {[%clk 0:00:42]} 28. Rd1 {[%clk 0:00:07]}  d4 {[%clk 0:00:41]} 29. Bc4+ {[%clk 0:00:07]}  Kh8 {[%clk 0:00:40]} 30. Rhe1 {[%clk 0:00:06]}  h6 {[%clk 0:00:40]} 31. Bc7 {[%clk 0:00:06]}  Ra8 {[%clk 0:00:39]} 32. Bd6 {[%clk 0:00:04]}  Kh7 {[%clk 0:00:39]} 33. Bf7 {[%clk 0:00:04]}  Rd8 {[%clk 0:00:38]} 34. Be5 {[%clk 0:00:04]}  Ba6 {[%clk 0:00:27]} 35. Bxg7 {[%clk 0:00:04]}  Kxg7 {[%clk 0:00:28]} 36. Nxa6 {[%clk 0:00:03]}  Kxf7 {[%clk 0:00:25]} 37. Nc5 {[%clk 0:00:03]}  Rd5 {[%clk 0:00:23]} 38. b4 {[%clk 0:00:03]}  Rb8 {[%clk 0:00:22]} 39. Nb3 {[%clk 0:00:02]}  Rxb4 {[%clk 0:00:21]} 40. Kc1 {[%clk 0:00:03]}  c5 {[%clk 0:00:21]} 41. c3 {[%clk 0:00:02]}  Rc4 {[%clk 0:00:19]} 42. Kb2 {[%clk 0:00:02]}  Rxc3 {[%clk 0:00:16]} 43. Rd2 {[%clk 0:00:02]}  Rg3 {[%clk 0:00:15]} 44. Rdd1 {[%clk 0:00:01]}  d3 {[%clk 0:00:14]} 45. Rd2 {[%clk 0:00:01]}  c4 {[%clk 0:00:14]} 46. Nc1 {[%clk 0:00:01]}  Rb5+ {[%clk 0:00:14]} 47. Kc3 {[%clk 0:00:02]}  Rc5 {[%clk 0:00:14]} 48. Kd4 {[%clk 0:00:02]}  Rc8 {[%clk 0:00:14]} 49. Kc3 {[%clk 0:00:02]}  Ke6 {[%clk 0:00:14]} 50. Nb3 {[%clk 0:00:01]}  Kd5 {[%clk 0:00:14]} 0-1


[Site "https://www.chess.com"]